bitfinex/quotes_BTCUSD_20250617
["timestamp","ask_amount","ask_price","bid_price","bid_amount"]
[1750200471468,0.4109881,104720.0,104710.0,0.05056]
[1750200471683,0.44957993,104720.0,104710.0,0.05056]
[1750200471890,0.47823584,104720.0,104710.0,0.05056]
[1750200472101,0.54438583,104720.0,104710.0,0.05056]
[1750200472331,1.05132759,104720.0,104710.0,0.01]
[1750200472753,1.0804247,104720.0,104710.0,0.00063732]
[1750200473168,0.22922469,104700.0,104690.0,0.55320414]
[1750200474008,0.02865164,104700.0,104690.0,0.65470772]
[1750200474216,0.019101,104700.0,104690.0,0.65470772]
[1750200474421,0.019101,104700.0,104690.0,0.65718287]
[1750200474873,0.27632874,104720.0,104710.0,0.2655539]
[1750200475076,0.2247481,104720.0,104710.0,0.29656372]
[1750200475508,0.2247481,104720.0,104710.0,0.3061139]
[1750200476978,0.2317481,104720.0,104710.0,0.3071139]
[1750200477186,0.2327481,104720.0,104710.0,0.11611018]
[1750200477593,0.24578311,104720.0,104710.0,0.3071139]
[1750200477790,0.24578311,104720.0,104710.0,0.11611018]
[1750200478472,0.24578311,104720.0,104710.0,0.3071139]
[1750200478688,0.2327481,104720.0,104710.0,0.3071139]
[1750200478897,0.2327481,104720.0,104710.0,0.32621399]
[1750200479098,0.2327481,104720.0,104710.0,0.3071139]
[1750200480046,0.2327481,104720.0,104710.0,0.10656]
[1750200480282,0.29970834,104720.0,104710.0,0.10656]
[1750200482653,0.32836425,104720.0,104710.0,0.04156]
[1750200482895,0.44025418,104720.0,104710.0,0.04156]
[1750200483134,0.46317891,104720.0,104710.0,0.04156]
[1750200483599,0.46317905,104720.0,104710.0,0.04156]
[1750200483840,0.73621881,104720.0,104710.0,0.07236]
[1750200485050,0.73621881,104720.0,104710.0,0.10346]
[1750200485259,0.73621881,104720.0,104710.0,0.04156]
[1750200485466,0.89245881,104720.0,104710.0,0.04156]
[1750200485673,0.98860803,104720.0,104710.0,0.04156]
[1750200486313,0.98860712,104720.0,104710.0,0.04156]
[1750200487690,0.97295972,104720.0,104710.0,0.04156]
[1750200487891,0.89245678,104720.0,104710.0,0.04156]
[1750200488104,0.88351601,104720.0,104710.0,0.10346]
[1750200488795,0.8768105,104720.0,104710.0,0.10346]
[1750200489473,0.8768105,104720.0,104710.0,0.04156]
[1750200489698,0.97295972,104720.0,104710.0,0.04156]
[1750200491131,0.8768105,104720.0,104710.0,0.10656]
[1750200491831,0.89245884,104720.0,104710.0,0.04156]
[1750200492058,0.88351693,104720.0,104710.0,0.04156]
[1750200493026,0.89246145,104720.0,104710.0,0.04156]
[1750200494712,0.89246266,104720.0,104710.0,0.04156]
[1750200494926,0.98861188,104720.0,104710.0,0.04156]
[1750200495572,1.02666162,104720.0,104710.0,0.04156]
[1750200496002,1.02666333,104720.0,104710.0,0.04156]
[1750200496832,1.02666333,104720.0,104710.0,0.07246]
[1750200498262,1.02666333,104720.0,104710.0,0.04156]
[1750200498718,1.01771826,104720.0,104710.0,0.04156]
[1750200498929,0.93052259,104720.0,104710.0,0.10546]
[1750200499575,0.93052259,104720.0,104710.0,0.04156]
[1750200500007,0.90186668,104720.0,104710.0,0.04156]
[1750200500191,1.05186668,104720.0,104710.0,0.04156]
[1750200500496,1.13906235,104720.0,104710.0,0.04156]
[1750200500959,1.19613696,104720.0,104710.0,0.04156]
[1750200501190,1.13906235,104720.0,104710.0,0.04156]
[1750200501441,1.14802144,104720.0,104710.0,0.04156]
[1750200501668,1.14803195,104720.0,104710.0,0.04156]
[1750200502144,1.14555195,104720.0,104710.0,0.04156]
[1750200502650,1.39555195,104720.0,104710.0,0.04156]
[1750200502860,1.39555196,104720.0,104710.0,0.04156]
[1750200503711,1.1487284,104720.0,104710.0,0.04156]
[1750200503976,1.33974331,104720.0,104710.0,0.04156]
[1750200504420,1.33974332,104720.0,104710.0,0.04156]
[1750200504631,1.33078422,104720.0,104710.0,0.04156]
[1750200505065,1.33078431,104720.0,104710.0,0.04156]
[1750200505301,1.23463509,104720.0,104710.0,0.001]
[1750200505517,1.23463509,104720.0,104710.0,0.0316]
[1750200505955,1.26252734,104720.0,104710.0,0.001]
[1750200508690,1.66658734,104720.0,104710.0,0.001]
[1750200508907,1.91897656,104720.0,104710.0,0.001]
[1750200509150,1.9570263,104720.0,104710.0,0.001]
[1750200509356,1.92835724,104720.0,104710.0,0.001]
[1750200509994,1.92835674,104720.0,104710.0,0.001]
[1750200510633,1.77190752,104720.0,104710.0,0.001]
[1750200510811,1.80057639,104720.0,104710.0,0.001]
[1750200513006,1.83307639,104720.0,104710.0,0.001]
[1750200513427,1.83307643,104720.0,104710.0,0.001]
[1750200513845,1.82343243,104720.0,104710.0,0.001]
[1750200514057,1.91958165,104720.0,104710.0,0.001]
[1750200514306,1.95278165,104720.0,104710.0,0.001]
[1750200514772,1.91958165,104720.0,104710.0,0.001]
[1750200517142,1.88708165,104720.0,104710.0,0.001]
[1750200518653,1.88707954,104720.0,104710.0,0.001]
[1750200518860,1.91967954,104720.0,104710.0,0.001]
[1750200519535,1.79093032,104720.0,104710.0,0.001]
[1750200520889,1.79093032,104720.0,104710.0,0.065]
[1750200521519,1.79093025,104720.0,104710.0,0.065]
[1750200522590,1.79093023,104720.0,104710.0,0.065]
[1750200522776,1.67289892,104720.0,104710.0,0.065]
[1750200523009,1.82913892,104720.0,104710.0,0.065]
[1750200524306,1.91857139,104720.0,104710.0,0.065]
[1750200524549,1.92528792,104720.0,104710.0,0.065]
[1750200525380,1.76904792,104720.0,104710.0,0.065]
[1750200525586,1.92528792,104720.0,104710.0,0.065]
[1750200528638,1.88707923,104720.0,104710.0,0.065]
[1750200529120,1.79093001,104720.0,104710.0,0.065]
[1750200529319,1.82914443,104720.0,104710.0,0.065]
[1750200529958,1.82914595,104720.0,104710.0,0.065]
[1750200531569,1.82914623,104720.0,104710.0,0.065]
[1750200532083,0.48574845,104720.0,104710.0,0.29420317]
[1750200532322,0.39158727,104720.0,104710.0,0.37947738]
[1750200532560,0.02292473,104720.0,104710.0,0.39401823]
[1750200532775,0.28502083,104740.0,104730.0,0.2722635]
[1750200532998,0.4482954,104740.0,104730.0,0.32265122]
[1750200533237,0.09903175,104740.0,104730.0,0.32265122]
[1750200533476,0.41670711,104740.0,104730.0,0.32265122]
[1750200533711,0.41096003,104740.0,104730.0,0.32265122]
[1750200533973,0.42050702,104740.0,104730.0,0.32265122]
[1750200534199,0.37546227,104740.0,104730.0,0.3493599]
[1750200534416,0.37546218,104740.0,104730.0,0.3493599]
[1750200534630,0.36591555,104740.0,104730.0,0.3493599]
[1750200534841,0.343,104740.0,104730.0,0.3493599]
[1750200535473,0.34,104740.0,104730.0,0.32312637]
[1750200535689,0.34,104740.0,104730.0,0.32512637]
[1750200535900,0.34954672,104740.0,104730.0,0.32512637]
[1750200536113,0.37748936,104740.0,104730.0,0.32512637]
[1750200536336,0.40040491,104740.0,104730.0,0.32512637]
[1750200536555,0.39085819,104740.0,104730.0,0.32512637]
[1750200536740,0.34,104740.0,104730.0,0.32512637]
[1750200537727,0.05149362,104750.0,104740.0,0.21959025]
[1750200537966,0.05138415,104760.0,104750.0,0.28066929]
[1750200538182,0.0095448,104760.0,104750.0,0.28066929]
[1750200538395,0.25768938,104770.0,104760.0,0.27110335]
[1750200538619,0.60723409,104770.0,104760.0,0.32148852]
[1750200538831,0.08010561,104770.0,104760.0,0.34057859]
[1750200539049,0.25768872,104770.0,104760.0,0.3310336]
[1750200539263,0.64660034,104770.0,104760.0,0.3310336]
[1750200539473,0.67517109,104770.0,104760.0,0.3310336]
[1750200539929,0.69797571,104770.0,104760.0,0.3310336]
[1750200540113,0.65981482,104770.0,104760.0,0.32148852]
[1750200540353,0.6370102,104770.0,104760.0,0.31848852]
[1750200540555,0.6400102,104770.0,104760.0,0.30894335]
[1750200541190,0.6420102,104770.0,104760.0,0.30894335]
[1750200541415,0.6390102,104770.0,104760.0,0.30894335]
[1750200541631,0.59309858,104770.0,104760.0,0.30894335]
[1750200541855,0.59309858,104770.0,104760.0,0.31848852]
[1750200542121,0.59309858,104770.0,104760.0,0.3280336]
[1750200543954,0.59309858,104770.0,104760.0,0.31848852]
[1750200544193,0.39265917,104770.0,104760.0,0.32803351]
[1750200544451,0.36408824,104770.0,104760.0,0.3831898]
[1750200544681,0.37363259,104770.0,104760.0,0.3831898]
[1750200544908,0.36408824,104770.0,104760.0,0.32803351]
[1750200545146,0.35454389,104770.0,104760.0,0.32803351]
[1750200545376,0.39307258,104770.0,104760.0,0.32803351]
[1750200545623,0.345,104770.0,104760.0,0.32803351]
[1750200546107,0.35454389,104770.0,104760.0,0.32803351]
[1750200546551,0.345,104770.0,104760.0,0.32803351]
[1750200546979,0.35454389,104770.0,104760.0,0.32803351]
[1750200547403,0.36408796,104770.0,104760.0,0.32803351]
[1750200547618,0.05185345,104770.0,104760.0,0.61913351]
[1750200547866,0.05939771,104770.0,104760.0,0.60958852]
[1750200548080,0.26638128,104770.0,104760.0,0.76646852]
[1750200548293,0.05639771,104770.0,104760.0,0.78755859]
[1750200548509,0.0563978,104770.0,104760.0,0.79255859]
[1750200548716,0.02863231,104770.0,104760.0,0.79255859]
[1750200548926,0.02863222,104770.0,104760.0,0.79255859]
[1750200549583,0.02863222,104770.0,104760.0,0.50145859]
[1750200550228,0.00954389,104770.0,104760.0,0.57069753]
[1750200550435,0.5690506,104780.0,104770.0,0.28542765]
[1750200550646,0.59708944,104780.0,104770.0,0.28542765]
[1750200551453,0.59708944,104780.0,104770.0,0.27588348]
[1750200551454,0.58754609,104780.0,104770.0,0.27588348]
[1750200551664,0.58763674,104780.0,104770.0,0.27688348]
[1750200552084,0.58763674,104780.0,104770.0,0.28642783]
[1750200552496,0.58763674,104780.0,104770.0,0.27688348]
[1750200552739,0.58763674,104780.0,104770.0,0.27988348]
[1750200552950,0.58763674,104780.0,104770.0,0.28942783]
[1750200554014,0.58763674,104780.0,104770.0,0.004]
[1750200554015,0.66212451,104780.0,104770.0,0.004]
[1750200554222,1.18740461,104780.0,104770.0,0.004]
[1750200554438,1.21880461,104780.0,104770.0,0.004]
[1750200554645,1.22769004,104780.0,104770.0,0.004]
[1750200555087,1.0736766,104780.0,104770.0,0.004]
[1750200555332,1.06479117,104780.0,104770.0,0.004]
[1750200555557,1.06479117,104780.0,104770.0,0.001]
[1750200555769,1.06479117,104780.0,104770.0,0.002]
[1750200555976,1.07367809,104780.0,104770.0,0.002]
[1750200556198,1.07367809,104780.0,104770.0,0.001]
[1750200556413,1.06479117,104780.0,104770.0,0.001]
[1750200556625,1.07367809,104780.0,104770.0,0.001]
[1750200557057,1.09643596,104780.0,104770.0,0.001]
[1750200558561,1.1248833,104780.0,104770.0,0.001]
[1750200558772,1.14269025,104780.0,104770.0,0.001]
[1750200559007,0.86888336,104780.0,104770.0,0.001]
[1750200559224,0.65975948,104780.0,104770.0,0.26423904]
[1750200559476,0.81667887,104780.0,104770.0,0.0638]
[1750200559679,0.81667887,104780.0,104770.0,0.25469433]
[1750200560558,0.82336924,104780.0,104770.0,0.25469433]
[1750200560776,0.66644924,104780.0,104770.0,0.26423904]
[1750200560994,0.72712748,104780.0,104770.0,0.32720067]
[1750200561415,0.72708748,104780.0,104770.0,0.33674511]
[1750200562108,0.72708748,104780.0,104770.0,0.28332801]
[1750200562323,0.72712452,104780.0,104770.0,0.28332801]
[1750200562533,0.75557186,104780.0,104770.0,0.28332801]
[1750200562972,0.59869186,104780.0,104770.0,0.28332801]
[1750200563180,0.59869186,104780.0,104770.0,0.27378357]
[1750200563610,0.68529728,104780.0,104770.0,0.0638]
[1750200564734,0.78153904,104780.0,104770.0,0.001]
[1750200564966,1.23497152,104780.0,104770.0,0.00099999]
[1750200565189,1.25953086,104780.0,104770.0,0.00099999]
[1750200565419,1.27849576,104780.0,104770.0,0.00099999]
[1750200565640,6.23234654,104780.0,104770.0,0.00099999]
[1750200566554,6.23234654,104780.0,104750.0,0.30133547]
[1750200566555,0.55954834,104760.0,104750.0,0.30133547]
[1750200566808,0.80180309,104760.0,104750.0,0.33343547]
[1750200567071,0.80180309,104760.0,104750.0,0.31434304]
[1750200567072,0.6348307,104760.0,104750.0,0.31434304]
[1750200567297,0.6348307,104760.0,104750.0,0.33343565]
[1750200567977,0.44397545,104760.0,104750.0,0.41643534]
[1750200568199,0.65397898,104760.0,104750.0,0.42598088]
[1750200568428,0.65397898,104760.0,104750.0,0.34298119]
[1750200568646,0.65397898,104760.0,104750.0,0.33343529]
[1750200568647,0.65397961,104760.0,104750.0,0.33343529]
[1750200568869,0.63488891,104760.0,104750.0,0.31534286]
[1750200569092,0.64442582,104760.0,104750.0,0.32788912]
[1750200569307,0.64442586,104760.0,104750.0,0.32788912]
[1750200569520,0.74057508,104760.0,104750.0,0.32788912]
[1750200569940,0.64442586,104760.0,104750.0,0.32676912]
[1750200570361,0.67304161,104760.0,104750.0,0.33631529]
[1750200570643,0.65516761,104760.0,104750.0,0.34586137]
[1750200570879,0.67305297,104760.0,104750.0,0.34586137]
[1750200572384,0.69214165,104760.0,104750.0,0.30767651]
[1750200572600,0.76920062,104760.0,104750.0,0.1072]
[1750200572815,0.74058487,104760.0,104750.0,0.1072]
[1750200573030,0.74058487,104760.0,104750.0,0.30767731]
[1750200573450,0.74058155,104760.0,104750.0,0.30767731]
[1750200573889,0.74058155,104760.0,104750.0,0.31722375]
[1750200574304,0.76918816,104760.0,104750.0,0.3267701]
[1750200574769,0.76918816,104760.0,104750.0,0.31722375]
[1750200574990,0.74236279,104760.0,104750.0,0.31722375]
[1750200575206,0.73566485,104760.0,104750.0,0.31722375]
[1750200575706,0.73566485,104760.0,104750.0,0.30767731]
[1750200575960,0.75964173,104760.0,104750.0,0.30767731]
[1750200576660,0.75964301,104760.0,104750.0,0.30767731]
[1750200578485,0.62534617,104760.0,104750.0,0.31722375]
[1750200578721,0.62534542,104760.0,104750.0,0.31722375]
[1750200579582,0.62534456,104760.0,104750.0,0.31722375]
[1750200579776,0.66349218,104760.0,104750.0,0.31722375]
[1750200580855,0.65678797,104760.0,104750.0,0.31722375]
[1750200581489,0.61864035,104760.0,104750.0,0.32677001]
[1750200583200,0.61864035,104760.0,104750.0,0.42291923]
[1750200583451,0.61864035,104760.0,104750.0,0.32677001]
[1750200585040,0.44366877,104760.0,104750.0,0.32677001]
[1750200585210,0.25003374,104760.0,104750.0,0.32677001]
[1750200585583,0.22727587,104760.0,104750.0,0.32677001]
[1750200587379,0.20045818,104760.0,104750.0,0.32677001]
[1750200587828,0.20045818,104760.0,104750.0,0.42291923]
[1750200588036,0.2272903,104760.0,104750.0,0.42291923]
[1750200588246,0.23683565,104760.0,104750.0,0.33631609]
[1750200588464,0.23683598,104760.0,104750.0,0.33631609]
[1750200588686,0.2654713,104760.0,104750.0,0.34586208]
[1750200589119,0.2559265,104760.0,104750.0,0.34586208]
[1750200590249,0.24638142,104760.0,104750.0,0.32677001]
[1750200590457,0.25769786,104760.0,104750.0,0.32677001]
[1750200590664,0.57683616,104760.0,104750.0,0.32677001]
[1750200590872,0.5900485,104760.0,104750.0,0.31722375]
[1750200591430,0.58051075,104760.0,104750.0,0.31722375]
[1750200593299,0.58051075,104760.0,104750.0,0.1072]
[1750200593735,0.58722909,104760.0,104750.0,0.1072]
[1750200594170,0.5626172,104760.0,104750.0,0.29813078]
[1750200594372,0.587251,104760.0,104750.0,0.29813078]
[1750200594589,0.68340022,104760.0,104750.0,0.29813078]
[1750200595223,0.71200683,104760.0,104750.0,0.29813078]
[1750200596311,0.61585761,104760.0,104750.0,0.31722375]
[1750200596738,0.42494505,104760.0,104750.0,0.31722375]
[1750200596949,0.587251,104760.0,104750.0,0.31722375]
[1750200597160,0.58726218,104760.0,104750.0,0.31722375]
[1750200600182,0.58726247,104760.0,104750.0,0.31722375]
[1750200600437,0.58726346,104760.0,104750.0,0.31722375]
[1750200600717,0.68341268,104760.0,104750.0,0.31722375]
[1750200601414,0.68341306,104760.0,104750.0,0.30767731]
[1750200601832,0.68341306,104760.0,104750.0,0.1072]
[1750200602044,0.6835056,104760.0,104750.0,0.004]
[1750200602254,0.6835056,104760.0,104750.0,0.04512]
[1750200602255,0.99115055,104760.0,104750.0,0.04512]
[1750200602465,0.96211221,104760.0,104750.0,0.04512]
[1750200603116,0.93747704,104760.0,104750.0,0.004]
[1750200603329,0.96211302,104760.0,104750.0,0.004]
[1750200603760,0.71211302,104760.0,104750.0,0.25783078]
[1750200603973,0.84050641,104760.0,104750.0,0.26737713]
[1750200604199,0.84050641,104760.0,104750.0,0.25783078]
[1750200604389,0.8405057,104760.0,104750.0,0.26737722]
[1750200604638,0.05635138,104760.0,104750.0,0.32114055]
[1750200604856,0.06627711,104780.0,104770.0,0.02863304]
[1750200604857,0.009634,104780.0,104770.0,0.02863304]
[1750200605098,0.00963372,104780.0,104770.0,0.29334737]
[1750200605313,9.065e-05,104780.0,104770.0,0.45050737]
[1750200605538,9.065e-05,104780.0,104770.0,0.48050737]
[1750200605753,0.00963381,104780.0,104770.0,0.48050737]
[1750200605967,0.01917716,104780.0,104770.0,0.48050737]
[1750200606180,0.00963381,104780.0,104770.0,0.48050737]
[1750200607074,0.00963372,104780.0,104770.0,0.48050737]
[1750200607283,0.01363372,104780.0,104770.0,0.48050737]
[1750200607493,0.01163372,104780.0,104770.0,0.48050737]
[1750200607708,0.00963372,104780.0,104770.0,0.48050737]
[1750200607890,0.01063372,104780.0,104770.0,0.32334737]
[1750200608141,0.00109065,104780.0,104770.0,0.32334737]
[1750200608366,0.00109065,104780.0,104770.0,0.38109178]
[1750200609302,0.01063363,104780.0,104770.0,0.38109178]
[1750200609515,0.04001374,104780.0,104770.0,0.38109178]
[1750200609741,0.00109065,104780.0,104770.0,0.38109178]
[1750200610162,0.01063381,104780.0,104770.0,0.32334737]
[1750200610397,0.01063372,104780.0,104770.0,0.32334737]
[1750200610845,0.00109065,104780.0,104770.0,0.32334737]
[1750200611698,0.04070665,104780.0,104770.0,0.32334737]
[1750200612117,0.00109065,104780.0,104770.0,0.32334737]
[1750200614622,0.03984501,104780.0,104770.0,0.32334737]
[1750200614838,0.00109065,104780.0,104770.0,0.32334737]
[1750200615058,0.01063363,104780.0,104770.0,0.32334737]
[1750200616450,0.02017688,104780.0,104770.0,0.32334737]
[1750200616701,0.01063363,104780.0,104770.0,0.32334737]
[1750200616928,0.02017679,104780.0,104770.0,0.32334737]
[1750200617167,0.01063363,104780.0,104770.0,0.32334737]
[1750200617409,0.02017679,104780.0,104770.0,0.32334737]
[1750200617863,0.01063363,104780.0,104770.0,0.32334737]
[1750200618301,0.02017679,104780.0,104770.0,0.32334737]
[1750200618537,0.02972014,104780.0,104770.0,0.32334737]
[1750200618763,0.0201767,104780.0,104770.0,0.32334737]
[1750200618978,0.02971995,104780.0,104770.0,0.32334737]
[1750200619189,0.0201767,104780.0,104770.0,0.32334737]
[1750200619405,0.01063363,104780.0,104770.0,0.32334737]
[1750200619634,0.00109065,104780.0,104770.0,0.40983018]
[1750200619849,0.00109065,104780.0,104770.0,0.50607194]
[1750200620527,0.03906612,104780.0,104770.0,0.43412998]
[1750200620745,9.065e-05,104780.0,104770.0,0.43412998]
[1750200620966,9.065e-05,104780.0,104770.0,0.43812998]
[1750200621583,9.065e-05,104780.0,104770.0,0.73122998]
[1750200622322,9.065e-05,104780.0,104770.0,0.68108808]
[1750200622540,9.065e-05,104780.0,104770.0,0.7772373]
[1750200625370,0.02283523,104790.0,104780.0,0.23404728]
[1750200625588,0.02283523,104790.0,104780.0,0.79168714]
[1750200627611,0.02283523,104790.0,104780.0,0.79968714]
[1750200629567,0.02283523,104790.0,104780.0,0.40148904]
[1750200629802,0.02283523,104790.0,104780.0,0.69258904]
[1750200630028,0.02283523,104790.0,104780.0,0.67804819]
[1750200630249,0.02283523,104790.0,104780.0,0.25904345]
[1750200630250,0.36358098,104790.0,104780.0,0.25904345]
[1750200630469,0.36358098,104790.0,104780.0,0.2685868]
[1750200630696,0.36358098,104790.0,104780.0,0.26858689]
[1750200630917,0.11817258,104790.0,104780.0,0.28367349]
[1750200631139,0.04192038,104790.0,104780.0,0.28667285]
[1750200631576,0.04192038,104790.0,104780.0,0.35015357]
[1750200631787,0.03237739,104790.0,104780.0,0.35015357]
[1750200632043,0.05146217,104790.0,104780.0,0.50343357]
[1750200632256,0.05146217,104790.0,104780.0,0.50743357]
[1750200632472,0.05146208,104790.0,104780.0,0.50443357]
[1750200632690,0.05146208,104790.0,104780.0,0.50043357]
[1750200632911,0.05146208,104790.0,104780.0,0.43695285]
[1750200633130,0.26140558,104790.0,104780.0,0.40824309]
[1750200633341,0.26140558,104790.0,104780.0,0.41778625]
[1750200633342,0.25186342,104790.0,104780.0,0.41778625]
[1750200633563,0.06100552,104790.0,104780.0,0.41778625]
[1750200633989,0.25186342,104790.0,104780.0,0.40824309]
[1750200634203,0.25186342,104790.0,104780.0,0.41778625]
[1750200634647,0.05146263,104790.0,104780.0,0.26058625]
[1750200635498,0.26655081,104790.0,104780.0,0.23195612]
[1750200635711,0.62544032,104790.0,104780.0,0.24968345]
[1750200635994,0.64822074,104790.0,104780.0,0.24968345]
[1750200636205,0.62399046,104790.0,104780.0,0.24968345]
[1750200636420,0.62399046,104790.0,104780.0,0.25922698]
[1750200636632,0.65074291,104790.0,104780.0,0.25922698]
[1750200636841,0.65074291,104790.0,104780.0,0.24968345]
[1750200638135,0.65074291,104790.0,104780.0,0.26877024]
[1750200638355,0.65074291,104790.0,104780.0,0.34094635]
[1750200638574,0.64182304,104790.0,104780.0,0.34094635]
[1750200638802,0.65074437,104790.0,104780.0,0.26877024]
[1750200641693,0.65075658,104790.0,104780.0,0.26877024]
[1750200642558,0.6329125,104790.0,104780.0,0.26877024]
[1750200642981,0.65075577,104790.0,104780.0,0.26877024]
[1750200644335,0.65075577,104790.0,104780.0,0.24013983]
[1750200644555,0.66984199,104790.0,104780.0,0.25922661]
[1750200645414,0.66029955,104790.0,104780.0,0.24968336]
[1750200645632,0.65075684,104790.0,104780.0,0.24968336]
[1750200646059,0.65075684,104790.0,104780.0,0.25104336]
[1750200646278,0.72781919,104790.0,104770.0,0.50108257]
[1750200646499,0.63166997,104790.0,104780.0,0.24149992]
[1750200647370,0.63167018,104790.0,104780.0,0.24149992]
[1750200648089,0.63166927,104790.0,104780.0,0.24149992]
[1750200649817,0.63166862,104790.0,104780.0,0.24149992]
[1750200650423,0.72781784,104790.0,104780.0,0.24149992]
[1750200650632,0.72781784,104790.0,104780.0,0.04108]
[1750200650838,0.72781784,104790.0,104780.0,0.23195612]
[1750200651051,0.72781784,104790.0,104780.0,0.24149992]
[1750200651278,0.63166821,104790.0,104780.0,0.24149992]
[1750200652120,0.63166821,104790.0,104780.0,0.25104363]
[1750200652531,0.61382641,104790.0,104780.0,0.25104363]
[1750200652947,0.61382641,104790.0,104780.0,0.23195612]
[1750200653584,0.60490531,104790.0,104780.0,0.23195612]
[1750200653802,0.20041992,104780.0,104770.0,0.25338466]
[1750200654032,0.20041992,104780.0,104770.0,0.04088]
[1750200654942,0.20041992,104780.0,104770.0,0.24131904]
[1750200655150,0.20041992,104780.0,104770.0,0.24231904]
[1750200655379,0.20041992,104780.0,104770.0,0.24431904]
[1750200656011,0.20041992,104780.0,104770.0,0.05342471]
[1750200656219,0.19087612,104780.0,104770.0,0.05342471]
[1750200656435,0.19087612,104780.0,104770.0,0.24431904]
[1750200657295,0.90003467,104780.0,104770.0,0.04388]
[1750200657524,0.98881509,104780.0,104770.0,0.04388]
[1750200657740,1.04597089,104780.0,104770.0,0.04388]
[1750200657950,1.04597089,104780.0,104770.0,0.04288]
[1750200658163,1.04597089,104780.0,104770.0,0.04088]
[1750200658583,1.05267129,104780.0,104770.0,0.04088]
[1750200658841,1.04597937,104780.0,104770.0,0.04088]
[1750200659052,0.20043895,104770.0,104760.0,0.04088]
[1750200659274,0.20043895,104770.0,104760.0,0.30172874]
[1750200659488,0.22726907,104770.0,104760.0,0.30172874]
[1750200659900,0.22726907,104770.0,104760.0,0.29218321]
[1750200660135,0.22726907,104770.0,104760.0,0.10127065]
[1750200660343,0.22726907,104770.0,104760.0,0.10327065]
[1750200660554,0.22726907,104770.0,104760.0,0.29418321]
[1750200661105,0.22726907,104770.0,104760.0,0.29618321]
[1750200661324,0.32341829,104770.0,104760.0,0.00409065]
[1750200661550,0.32341829,104770.0,104760.0,0.04497065]
[1750200662198,0.22726063,104770.0,104760.0,0.04497065]
[1750200663296,0.26067581,104770.0,104760.0,0.04497065]
[1750200663717,0.26067581,104770.0,104760.0,0.00409065]
[1750200663718,0.35691712,104770.0,104760.0,0.00409065]
[1750200664141,0.37969754,104770.0,104760.0,0.00409065]
[1750200664576,0.36181968,104770.0,104760.0,0.00409065]
[1750200664792,0.45306578,104770.0,104760.0,0.00409065]
[1750200665002,0.4758462,104770.0,104760.0,0.00409065]
[1750200665654,0.5069462,104770.0,104760.0,0.00409065]
[1750200666799,0.50693594,104770.0,104760.0,0.00409065]
[1750200667013,0.66361594,104770.0,104760.0,0.00409065]
[1750200667225,0.69551594,104770.0,104760.0,0.00209065]
[1750200667442,0.69551594,104770.0,104760.0,9.065e-05]
[1750200668081,0.66361136,104770.0,104760.0,9.065e-05]
[1750200668718,1.285511,104770.0,104760.0,9.065e-05]
[1750200668935,1.253611,104770.0,104760.0,9.065e-05]
[1750200669813,1.2820738,104770.0,104760.0,9.065e-05]
[1750200670240,1.15482458,104770.0,104760.0,9.065e-05]
[1750200671274,1.15481049,104770.0,104760.0,9.065e-05]
[1750200671904,1.18350749,104770.0,104760.0,9.065e-05]
[1750200672525,1.17457468,104770.0,104760.0,9.065e-05]
[1750200672731,1.16564539,104770.0,104760.0,9.065e-05]
[1750200672936,1.18350396,104770.0,104760.0,9.065e-05]
[1750200673137,1.15671611,104770.0,104760.0,9.065e-05]
[1750200673346,1.17457468,104770.0,104760.0,9.065e-05]
[1750200673761,1.2707239,104770.0,104760.0,9.065e-05]
[1750200673960,1.3026239,104770.0,104760.0,9.065e-05]
[1750200674168,1.34225396,104770.0,104760.0,9.065e-05]
[1750200674936,1.54225396,104770.0,104760.0,9.065e-05]
[1750200675156,1.69225396,104770.0,104760.0,9.065e-05]
[1750200675348,1.69895202,104770.0,104760.0,9.065e-05]
[1750200675784,1.73690242,104770.0,104760.0,9.065e-05]
[1750200675989,1.6407532,104770.0,104760.0,9.065e-05]
[1750200676204,1.0335228,104770.0,104760.0,9.065e-05]
[1750200676394,1.18342554,104770.0,104760.0,0.06299065]
[1750200676547,1.16556617,104770.0,104760.0,9.065e-05]
[1750200676752,1.18342598,104770.0,104760.0,9.065e-05]
[1750200677176,1.1901245,104770.0,104760.0,9.065e-05]
[1750200678003,1.19012878,104770.0,104760.0,9.065e-05]
[1750200678699,1.1901288,104770.0,104760.0,9.065e-05]
[1750200679122,1.19012811,104770.0,104760.0,9.065e-05]
[1750200680691,1.19012811,104770.0,104760.0,0.03159065]
[1750200680927,1.19012811,104770.0,104760.0,0.06419065]
[1750200681629,1.22139929,104770.0,104760.0,0.06419065]
[1750200681795,1.22810248,104770.0,104760.0,0.06419065]
[1750200684252,1.07150248,104770.0,104760.0,0.06419065]
[1750200684481,1.06544057,104770.0,104760.0,0.06419065]
[1750200684708,0.90864057,104770.0,104760.0,0.06419065]
[1750200685589,0.94390576,104770.0,104760.0,0.06419065]
[1750200686253,1.04015659,104770.0,104760.0,0.06419065]
[1750200687098,1.04016042,104770.0,104760.0,0.06419065]
[1750200687742,1.00489523,104770.0,104760.0,0.26464865]
[1750200687982,0.43258332,104770.0,104760.0,0.2837389]
[1750200688228,0.18067997,104790.0,104780.0,0.20996345]
[1750200688457,0.26521956,104790.0,104780.0,0.32328689]
[1750200688673,0.60521956,104790.0,104780.0,0.32328689]
[1750200688909,0.58732306,104790.0,104780.0,0.32328689]
[1750200689138,0.61994746,104790.0,104780.0,0.37661219]
[1750200689409,0.62194746,104790.0,104780.0,0.36706875]
[1750200689627,0.62194746,104790.0,104780.0,0.31374345]
[1750200689855,0.62594746,104790.0,104780.0,0.31374345]
[1750200690304,0.62593457,104790.0,104780.0,0.31374345]
[1750200690523,0.61639213,104790.0,104780.0,0.30419992]
[1750200690740,0.61639213,104790.0,104780.0,0.31374363]
[1750200691380,0.60745677,104790.0,104780.0,0.31374363]
[1750200692278,0.60745677,104790.0,104780.0,0.32328725]
[1750200693336,0.60745677,104790.0,104780.0,0.33283078]
[1750200693751,0.60745677,104790.0,104780.0,0.10378]
[1750200694652,0.59791406,104790.0,104780.0,0.10378]
[1750200700251,0.62075075,104790.0,104780.0,0.10378]
[1750200708643,0.71689997,104790.0,104780.0,0.10378]
[1750200709501,0.20998348,104770.0,104760.0,0.00963627]
[1750200709719,0.54043904,104770.0,104760.0,0.19100321]
[1750200709932,0.53089433,104770.0,104760.0,0.04097065]
[1750200710152,0.55374997,104770.0,104760.0,0.04097065]
[1750200710572,0.55374997,104770.0,104760.0,0.10687065]
[1750200712138,0.55374997,104770.0,104760.0,0.30732883]
[1750200712764,0.55374997,104770.0,104760.0,0.11641627]
[1750200713209,0.55374997,104770.0,104760.0,0.06599065]
[1750200713437,0.55374997,104770.0,104760.0,0.10687065]
[1750200714725,0.55374997,104770.0,104760.0,0.29778321]
[1750200715178,0.55374997,104770.0,104760.0,0.30732883]
[1750200717580,0.55374997,104770.0,104760.0,0.31687427]
[1750200718469,0.55374997,104770.0,104760.0,0.27599427]
[1750200718678,0.55374997,104770.0,104760.0,0.31671427]